fUST/lending_fUST_20260508
["ID","MTS","AMOUNT","RATE_DAILY","PERIOD"]
[421864961,1778247052000,-500.0,0.00011232,2]
[421864958,1778247052000,-500.0,0.00011232,2]
[421864950,1778247052000,-500.0,0.0001123,2]
[421864956,1778247052000,-500.0,0.0001123,2]
[421864959,1778247052000,-500.0,0.00011232,2]
[421864949,1778247052000,-500.0,0.0001123,2]
[421864960,1778247052000,-500.0,0.00011232,2]
[421864953,1778247052000,-500.0,0.0001123,2]
[421864954,1778247052000,-962.71,0.0001123,2]
[421864957,1778247052000,-500.0,0.00011232,2]
[421864963,1778247052000,-500.0,0.00011232,2]
[421864972,1778247052000,-216.36950007,0.00011447,2]
[421864971,1778247052000,-500.0,0.00011447,2]
[421864952,1778247052000,-500.0,0.0001123,2]
[421864969,1778247052000,-500.0,0.00011447,2]
[421865015,1778247053000,-962.71,0.00011778,2]
[421865016,1778247053000,-641.19,0.00011778,2]
[421865013,1778247053000,-500.0,0.00011778,2]
[421865010,1778247053000,-660.83,0.00011778,2]
[421865007,1778247053000,-500.0,0.00011778,2]
[421865012,1778247053000,-500.0,0.00011778,2]
[421865019,1778247053000,-500.0,0.0001178,2]
[421865011,1778247053000,-493.75,0.00011778,2]
[421865009,1778247053000,-3348.45,0.00011778,2]
[421865017,1778247053000,-500.0,0.00011778,2]
[421865031,1778247053000,-500.0,0.00012052,2]
[421865024,1778247053000,-180.43500871,0.00011842,2]
[421865018,1778247053000,-500.0,0.0001178,2]
[421865020,1778247053000,-500.0,0.0001178,2]
[421865022,1778247053000,-500.0,0.0001178,2]
[421865030,1778247053000,-500.0,0.00012052,2]
[421865029,1778247053000,-500.0,0.00012,2]
[421865027,1778247053000,-500.0,0.00011995,2]
[421865032,1778247053000,-500.0,0.00012052,2]
[421865008,1778247053000,-500.0,0.00011778,2]
[421865021,1778247053000,-500.0,0.0001178,2]
[421865014,1778247053000,-500.0,0.00011778,2]
[421864990,1778247053000,-500.0,0.00011506,2]
[421865006,1778247053000,-500.0,0.00011778,2]
[421864986,1778247053000,-500.0,0.00011504,2]
[421864989,1778247053000,-500.0,0.00011504,2]
[421864985,1778247053000,-500.0,0.00011504,2]
[421864988,1778247053000,-641.19,0.00011504,2]
[421864987,1778247053000,-962.71,0.00011504,2]
[421865025,1778247053000,-6953.17387261,0.00011953,2]
[421864991,1778247053000,-500.0,0.00011506,2]
[421864992,1778247053000,-500.0,0.00011506,2]
[421864994,1778247053000,-500.0,0.00011506,2]
[421865005,1778247053000,-399.57081822,0.00011764,2]
[421864993,1778247053000,-500.0,0.00011506,2]
[421864995,1778247053000,-500.0,0.00011506,2]
[421864999,1778247053000,-500.0,0.00011721,2]
[421865000,1778247053000,-500.0,0.00011721,2]
[421864998,1778247053000,-500.0,0.00011506,2]
[421865003,1778247053000,-184.18,0.00011721,2]
[421865002,1778247053000,-500.0,0.00011721,2]
[421864997,1778247053000,-545.37520092,0.00011506,2]
[421865004,1778247053000,-500.0,0.00011721,2]
[421865001,1778247053000,-500.0,0.00011721,2]
[421864996,1778247053000,-500.0,0.00011506,2]
[421865028,1778247053000,-500.0,0.00011995,2]
[421865023,1778247053000,-500.0,0.0001178,2]
[421865037,1778247053000,-500.0,0.00012052,2]
[421865066,1778247053000,-500.0,0.00012328,2]
[421865062,1778247053000,-500.0,0.00012326,2]
[421865053,1778247053000,-500.0,0.00012326,2]
[421865073,1778247053000,-1900.0,0.000125,2]
[421865074,1778247053000,-720.0,0.00012535,2]
[421865072,1778247053000,-10000.0,0.000125,2]
[421865068,1778247053000,-160.0,0.00012378,2]
[421865058,1778247053000,-500.0,0.00012326,2]
[421865059,1778247053000,-500.0,0.00012326,2]
[421865061,1778247053000,-641.19,0.00012326,2]
[421865069,1778247053000,-160.0,0.00012378,2]
[421865054,1778247053000,-500.0,0.00012326,2]
[421865067,1778247053000,-161.58879827,0.00012378,2]
[421865060,1778247053000,-962.71,0.00012326,2]
[421865065,1778247053000,-500.0,0.00012328,2]
[421865070,1778247053000,-160.0,0.00012378,2]
[421865075,1778247053000,-500.0,0.00012543,2]
[421865076,1778247053000,-500.0,0.00012543,2]
[421865078,1778247053000,-10000.0,0.000126,2]
[421865079,1778247053000,-500.0,0.000126,2]
[421865026,1778247053000,-500.0,0.00011995,2]
[421865056,1778247053000,-660.83,0.00012326,2]
[421865057,1778247053000,-500.0,0.00012326,2]
[421865071,1778247053000,-174.33936917,0.00012442,2]
[421865063,1778247053000,-500.0,0.00012328,2]
[421865035,1778247053000,-500.0,0.00012052,2]
[421865055,1778247053000,-3348.45,0.00012326,2]
[421865033,1778247053000,-3348.45,0.00012052,2]
[421865038,1778247053000,-962.71,0.00012052,2]
[421865036,1778247053000,-500.0,0.00012052,2]
[421865034,1778247053000,-660.83,0.00012052,2]
[421865040,1778247053000,-500.0,0.00012052,2]
[421865052,1778247053000,-500.0,0.00012326,2]
[421865046,1778247053000,-500.0,0.00012054,2]
[421865043,1778247053000,-399.54649148,0.00012054,2]
[421865044,1778247053000,-500.0,0.00012054,2]
[421865039,1778247053000,-641.19,0.00012052,2]
[421865041,1778247053000,-500.0,0.00012054,2]
[421865042,1778247053000,-500.0,0.00012054,2]
[421865045,1778247053000,-500.0,0.00012054,2]
[421865049,1778247053000,-500.0,0.00012269,2]
[421865047,1778247053000,-180.43500871,0.00012209,2]
[421865051,1778247053000,-500.0,0.00012269,2]
[421865050,1778247053000,-500.0,0.00012269,2]
[421865048,1778247053000,-180.0,0.0001223,2]
[421865077,1778247053000,-500.0,0.00012543,2]
[421865064,1778247053000,-500.0,0.00012328,2]
[421865109,1778247054000,-641.19,0.00012874,2]
[421865112,1778247054000,-500.0,0.00012876,2]
[421865108,1778247054000,-962.71,0.00012874,2]
[421865104,1778247054000,-660.83,0.00012874,2]
[421865115,1778247054000,-500.0,0.00013148,2]
[421865106,1778247054000,-500.0,0.00012874,2]
[421865123,1778247054000,-962.71,0.00013148,2]
[421865103,1778247054000,-3348.45,0.00012874,2]
[421865114,1778247054000,-160.0,0.000131,3]
[421865120,1778247054000,-500.0,0.00013148,2]
[421865119,1778247054000,-660.83,0.00013148,2]
[421865102,1778247054000,-500.0,0.00012874,2]
[421865122,1778247054000,-500.0,0.00013148,2]
[421865135,1778247054000,-500.0,0.00013422,2]
[421865136,1778247054000,-962.71,0.00013422,2]
[421865129,1778247054000,-500.0,0.00013422,2]
[421865128,1778247054000,-500.0,0.00013365,2]
[421865137,1778247054000,-641.19,0.00013422,2]
[421865127,1778247054000,-200.0,0.00013263,2]
[421865125,1778247054000,-500.0,0.0001315,2]
[421865126,1778247054000,-186.18086464,0.00013233,14]
[421865130,1778247054000,-500.0,0.00013422,2]
[421865134,1778247054000,-500.0,0.00013422,2]
[421865133,1778247054000,-500.0,0.00013422,2]
[421865131,1778247054000,-3348.45,0.00013422,2]
[421865110,1778247054000,-170.8036058,0.00012876,2]
[421865132,1778247054000,-660.83,0.00013422,2]
[421865105,1778247054000,-500.0,0.00012874,2]
[421865107,1778247054000,-500.0,0.00012874,2]
[421865093,1778247054000,-500.0,0.00012602,2]
[421865113,1778247054000,-500.0,0.00013091,2]
[421865139,1778247054000,-2069.0,0.000135,3]
[421865092,1778247054000,-473.49463374,0.00012602,2]
[421865089,1778247054000,-500.0,0.000126,2]
[421865097,1778247054000,-354.96,0.00012817,2]
[421865080,1778247054000,-500.0,0.000126,2]
[421865081,1778247054000,-500.0,0.000126,2]
[421865096,1778247054000,-442.0,0.00012806,2]
[421865083,1778247054000,-660.83,0.000126,2]
[421865087,1778247054000,-962.71,0.000126,2]
[421865088,1778247054000,-641.19,0.000126,2]
[421865086,1778247054000,-500.0,0.000126,2]
[421865094,1778247054000,-592.391,0.00012806,2]
[421865099,1778247054000,-200.0,0.0001284,2]
[421865082,1778247054000,-3348.45,0.000126,2]
[421865084,1778247054000,-500.0,0.000126,2]
[421865100,1778247054000,-500.0,0.00012874,2]
[421865090,1778247054000,-500.0,0.00012602,2]
[421865098,1778247054000,-500.0,0.00012817,2]
[421865101,1778247054000,-500.0,0.00012874,2]
[421865095,1778247054000,-185.0,0.00012806,2]
[421865085,1778247054000,-500.0,0.000126,2]
[421865091,1778247054000,-500.0,0.00012602,2]
[421865111,1778247054000,-327.23054268,0.00012876,2]
[421865117,1778247054000,-483.77859344,0.00013148,2]
[421865116,1778247054000,-500.0,0.00013148,2]
[421865124,1778247054000,-641.19,0.00013148,2]
[421865118,1778247054000,-3348.45,0.00013148,2]
[421865121,1778247054000,-500.0,0.00013148,2]
[421865146,1778247054000,-3348.45,0.00013696,2]
[421865171,1778247054000,-500.0,0.00013698,2]
[421865140,1778247054000,-160.78033228,0.000135,4]
[421865169,1778247054000,-500.0,0.00013698,2]
[421865181,1778247054000,-500.0,0.00013698,2]
[421865178,1778247054000,-500.0,0.00013698,2]
[421865186,1778247054000,-691.09,0.00013698,2]
[421865176,1778247054000,-500.0,0.00013698,2]
[421865180,1778247054000,-500.0,0.00013698,2]
[421865179,1778247054000,-500.0,0.00013698,2]
[421865188,1778247054000,-691.09,0.00013698,2]
[421865184,1778247054000,-500.0,0.00013698,2]
[421865185,1778247054000,-691.09,0.00013698,2]
[421865183,1778247054000,-500.0,0.00013698,2]
[421865182,1778247054000,-500.0,0.00013698,2]
[421865177,1778247054000,-500.0,0.00013698,2]
[421865187,1778247054000,-691.09,0.00013698,2]
[421865200,1778247054000,-500.0,0.00013698,2]
[421865190,1778247054000,-691.09,0.00013698,2]
[421865189,1778247054000,-691.09,0.00013698,2]
[421865192,1778247054000,-500.0,0.00013698,2]
[421865191,1778247054000,-691.09,0.00013698,2]
[421865196,1778247054000,-500.0,0.00013698,2]
[421865193,1778247054000,-332.39933123,0.00013698,2]
[421865198,1778247054000,-500.0,0.00013698,2]
[421865194,1778247054000,-500.0,0.00013698,2]
[421865195,1778247054000,-500.0,0.00013698,2]
[421865199,1778247054000,-500.0,0.00013698,2]
[421865197,1778247054000,-500.0,0.00013698,2]
[421865145,1778247054000,-500.0,0.00013696,2]
[421865173,1778247054000,-500.0,0.00013698,2]
[421865174,1778247054000,-500.0,0.00013698,2]
[421865201,1778247054000,-500.0,0.00013698,2]
[421865165,1778247054000,-543.5018298,0.00013698,2]
[421865168,1778247054000,-500.0,0.00013698,2]
[421865150,1778247054000,-500.0,0.00013696,2]
[421865138,1778247054000,-500.0,0.00013424,2]
[421865149,1778247054000,-500.0,0.00013696,2]
[421865143,1778247054000,-200.0,0.00013685,2]
[421865141,1778247054000,-500.0,0.00013639,2]
[421865142,1778247054000,-1344.29655386,0.00013682,2]
[421865147,1778247054000,-660.83,0.00013696,2]
[421865148,1778247054000,-500.0,0.00013696,2]
[421865158,1778247054000,-500.0,0.00013698,2]
[421865155,1778247054000,-500.0,0.00013698,2]
[421865156,1778247054000,-500.0,0.00013698,2]
[421865154,1778247054000,-500.0,0.00013698,2]
[421865153,1778247054000,-500.0,0.00013698,2]
[421865144,1778247054000,-500.0,0.00013696,2]
[421865162,1778247054000,-500.0,0.00013698,2]
[421865157,1778247054000,-500.0,0.00013698,2]
[421865175,1778247054000,-532.69864627,0.00013698,2]
[421865167,1778247054000,-500.0,0.00013698,2]
[421865164,1778247054000,-500.0,0.00013698,2]
[421865170,1778247054000,-500.0,0.00013698,2]
[421865172,1778247054000,-500.0,0.00013698,2]
[421865166,1778247054000,-500.0,0.00013698,2]
[421865160,1778247054000,-874.39418742,0.00013698,2]
[421865163,1778247054000,-500.0,0.00013698,2]
[421865152,1778247054000,-641.19,0.00013696,2]
[421865151,1778247054000,-962.71,0.00013696,2]
[421865159,1778247054000,-1000.0,0.00013698,2]
[421865161,1778247054000,-500.0,0.00013698,2]
[421865238,1778247055000,-500.0,0.00014187,2]
[421865239,1778247055000,-500.0,0.00014187,2]
[421865236,1778247055000,-2065.42614099,0.00014175,2]
[421865242,1778247055000,-500.0,0.00014244,2]
[421865235,1778247055000,-200.0,0.00014108,2]
[421865237,1778247055000,-500.0,0.00014186,2]
[421865244,1778247055000,-660.83,0.00014244,2]
[421865240,1778247055000,-500.0,0.00014187,2]
[421865246,1778247055000,-500.0,0.00014244,2]
[421865241,1778247055000,-500.0,0.00014244,2]
[421865245,1778247055000,-500.0,0.00014244,2]
[421865243,1778247055000,-3348.45,0.00014244,2]
[421865234,1778247055000,-500.0,0.00013972,2]
[421865257,1778247055000,-362.229958,0.00014406,7]
[421865254,1778247055000,-160.0,0.000143,5]
[421865249,1778247055000,-641.19,0.00014244,2]
[421865256,1778247055000,-160.0,0.00014406,7]
[421865247,1778247055000,-264.35194866,0.00014244,2]
[421865258,1778247055000,-564.459916,0.00014406,7]
[421865248,1778247055000,-962.71,0.00014244,2]
[421865259,1778247055000,-367.137184,0.00014406,2]
[421865252,1778247055000,-17644.61233445,0.00014246,3]
[421865255,1778247055000,-271.873007,0.00014406,7]
[421865250,1778247055000,-691.09,0.00014245,2]
[421865251,1778247055000,-500.0,0.00014245,2]
[421865229,1778247055000,-227.082544,0.00013971,2]
[421865261,1778247055000,-500.0,0.00014518,2]
[421865253,1778247055000,-500.0,0.00014246,2]
[421865231,1778247055000,-500.0,0.00013971,2]
[421865230,1778247055000,-500.0,0.00013971,2]
[421865222,1778247055000,-500.0,0.0001397,2]
[421865271,1778247055000,-500.0,0.00014599,2]
[421865202,1778247055000,-500.0,0.00013698,2]
[421865212,1778247055000,-157.61,0.0001371,2]
[421865206,1778247055000,-500.0,0.00013698,2]
[421865208,1778247055000,-500.0,0.00013698,2]
[421865209,1778247055000,-500.0,0.00013698,2]
[421865211,1778247055000,-1000.0,0.00013699,2]
[421865203,1778247055000,-500.0,0.00013698,2]
[421865210,1778247055000,-1000.0,0.00013699,2]
[421865204,1778247055000,-500.0,0.00013698,2]
[421865205,1778247055000,-500.0,0.00013698,2]
[421865207,1778247055000,-500.0,0.00013698,2]
[421865213,1778247055000,-460.52229896,0.00013764,2]
[421865228,1778247055000,-500.0,0.00013971,2]
[421865215,1778247055000,-500.0,0.00013912,2]
[421865224,1778247055000,-500.0,0.0001397,2]
[421865233,1778247055000,-500.0,0.00013971,2]
[421865218,1778247055000,-500.0,0.0001397,2]
[421865221,1778247055000,-660.83,0.0001397,2]
[421865227,1778247055000,-500.0,0.00013971,2]
[421865226,1778247055000,-641.19,0.0001397,2]
[421865220,1778247055000,-3348.45,0.0001397,2]
[421865225,1778247055000,-962.71,0.0001397,2]
[421865216,1778247055000,-500.0,0.00013913,2]
[421865223,1778247055000,-500.0,0.0001397,2]
[421865217,1778247055000,-691.09,0.0001397,2]
[421865219,1778247055000,-500.0,0.0001397,2]
[421865232,1778247055000,-500.0,0.00013971,2]
[421865214,1778247055000,-864.0,0.00013788,2]
[421865268,1778247055000,-641.19,0.00014518,2]
[421865316,1778247055000,-500.0,0.00014699,2]
[421865264,1778247055000,-660.83,0.00014518,2]
[421865293,1778247055000,-500.0,0.00014699,2]
[421865290,1778247055000,-500.0,0.00014699,2]
[421865296,1778247055000,-500.0,0.00014699,2]
[421865294,1778247055000,-500.0,0.00014699,2]
[421865304,1778247055000,-500.0,0.00014699,2]
[421865311,1778247055000,-500.0,0.00014699,2]
[421865303,1778247055000,-500.0,0.00014699,2]
[421865313,1778247055000,-500.0,0.00014699,2]
[421865302,1778247055000,-190.11891186,0.00014699,2]
[421865308,1778247055000,-500.0,0.00014699,2]
[421865309,1778247055000,-500.0,0.00014699,2]
[421865310,1778247055000,-500.0,0.00014699,2]
[421865306,1778247055000,-500.0,0.00014699,2]
[421865297,1778247055000,-500.0,0.00014699,2]
[421865305,1778247055000,-500.0,0.00014699,2]
[421865307,1778247055000,-500.0,0.00014699,2]
[421865315,1778247055000,-500.0,0.00014699,2]
[421865322,1778247055000,-500.0,0.00014699,2]
[421865318,1778247055000,-580.6871428,0.00014699,2]
[421865314,1778247055000,-500.0,0.00014699,2]
[421865319,1778247055000,-154.11777834,0.00014699,2]
[421865317,1778247055000,-500.0,0.00014699,2]
[421865325,1778247055000,-500.0,0.00014699,2]
[421865324,1778247055000,-500.0,0.00014699,2]
[421865321,1778247055000,-500.0,0.00014699,2]
[421865323,1778247055000,-453.17191654,0.00014699,2]
[421865320,1778247055000,-500.0,0.00014699,2]
[421865273,1778247055000,-500.0,0.00014599,2]
[421865301,1778247055000,-500.0,0.00014699,2]
[421865292,1778247055000,-500.0,0.00014699,2]
[421865312,1778247055000,-500.0,0.00014699,2]
[421865288,1778247055000,-500.0,0.00014698,2]
[421865262,1778247055000,-500.0,0.00014518,2]
[421865298,1778247055000,-500.0,0.00014699,2]
[421865269,1778247055000,-500.0,0.0001452,2]
[421865272,1778247055000,-691.09,0.00014599,2]
[421865263,1778247055000,-3348.45,0.00014518,2]
[421865260,1778247055000,-500.0,0.00014461,2]
[421865266,1778247055000,-500.0,0.00014518,2]
[421865265,1778247055000,-500.0,0.00014518,2]
[421865270,1778247055000,-200.0,0.0001453,2]
[421865274,1778247055000,-500.0,0.000146,2]
[421865276,1778247055000,-500.0,0.00014641,2]
[421865275,1778247055000,-7095.2090798,0.000146,2]
[421865277,1778247055000,-822.0,0.00014642,2]
[421865280,1778247055000,-500.0,0.00014698,2]
[421865267,1778247055000,-962.71,0.00014518,2]
[421865287,1778247055000,-500.0,0.00014698,2]
[421865285,1778247055000,-691.09,0.00014698,2]
[421865291,1778247055000,-500.0,0.00014699,2]
[421865300,1778247055000,-500.0,0.00014699,2]
[421865289,1778247055000,-500.0,0.00014698,2]
[421865284,1778247055000,-500.0,0.00014698,2]
[421865282,1778247055000,-500.0,0.00014698,2]
[421865295,1778247055000,-500.0,0.00014699,2]
[421865278,1778247055000,-500.0,0.00014698,2]
[421865283,1778247055000,-500.0,0.00014698,2]
[421865281,1778247055000,-500.0,0.00014698,2]
[421865299,1778247055000,-500.0,0.00014699,2]
[421865279,1778247055000,-500.0,0.00014698,2]
[421865286,1778247055000,-691.09,0.00014698,2]
[421865346,1778247056000,-522.32628688,0.00014699,2]
[421865345,1778247056000,-279.99420755,0.00014699,2]
[421865344,1778247056000,-500.0,0.00014699,2]
[421865341,1778247056000,-627.4479727,0.00014699,2]
[421865349,1778247056000,-691.09,0.00014699,2]
[421865343,1778247056000,-500.0,0.00014699,2]
[421865348,1778247056000,-691.09,0.00014699,2]
[421865350,1778247056000,-691.09,0.00014699,2]
[421865347,1778247056000,-691.09,0.00014699,2]
[421865342,1778247056000,-500.0,0.00014699,2]
[421865357,1778247056000,-691.09,0.00014699,2]
[421865351,1778247056000,-691.09,0.00014699,2]
[421865336,1778247056000,-500.0,0.00014699,2]
[421865331,1778247056000,-500.0,0.00014699,2]
[421865339,1778247056000,-500.0,0.00014699,2]
[421865329,1778247056000,-500.0,0.00014699,2]
[421865338,1778247056000,-500.0,0.00014699,2]
[421865328,1778247056000,-500.0,0.00014699,2]
[421865332,1778247056000,-500.0,0.00014699,2]
[421865335,1778247056000,-500.0,0.00014699,2]
[421865337,1778247056000,-500.0,0.00014699,2]
[421865330,1778247056000,-500.0,0.00014699,2]
[421865333,1778247056000,-500.0,0.00014699,2]
[421865327,1778247056000,-500.0,0.00014699,2]
[421865326,1778247056000,-500.0,0.00014699,2]
[421865366,1778247056000,-594.98856796,0.00014699,2]
[421865334,1778247056000,-500.0,0.00014699,2]
[421865356,1778247056000,-691.09,0.00014699,2]
[421865340,1778247056000,-500.0,0.00014699,2]
[421865359,1778247056000,-500.0,0.00014699,2]
[421865365,1778247056000,-500.0,0.00014699,2]
[421865381,1778247056000,-152.0,0.00014078,7]
[421865376,1778247056000,-681.52679593,0.000147,5]
[421865378,1778247056000,-2278.80907994,0.000147,5]
[421865380,1778247056000,-152.0,0.00014078,7]
[421865383,1778247056000,-2129.94242598,0.000147,5]
[421865379,1778247056000,-1486.61586046,0.000147,5]
[421865382,1778247056000,-152.0,0.00014652,30]
[421865367,1778247056000,-500.0,0.00014699,2]
[421865361,1778247056000,-500.0,0.00014699,2]
[421865354,1778247056000,-691.09,0.00014699,2]
[421865374,1778247056000,-535281.61269096,0.000147,5]
[421865369,1778247056000,-500.0,0.00014699,2]
[421865377,1778247056000,-9810.58100322,0.000147,5]
[421865368,1778247056000,-500.0,0.00014699,2]
[421865371,1778247056000,-500.0,0.00014699,2]
[421865358,1778247056000,-691.16146466,0.00014699,2]
[421865372,1778247056000,-500.0,0.00014699,2]
[421865370,1778247056000,-500.0,0.00014699,2]
[421865360,1778247056000,-500.0,0.00014699,2]
[421865364,1778247056000,-500.0,0.00014699,2]
[421865363,1778247056000,-500.0,0.00014699,2]
[421865375,1778247056000,-2463.0,0.000147,5]
[421865373,1778247056000,-381.31868568,0.00014699,2]
[421865362,1778247056000,-500.0,0.00014699,2]
[421865353,1778247056000,-691.09,0.00014699,2]
[421865355,1778247056000,-691.09,0.00014699,2]
[421865352,1778247056000,-691.09,0.00014699,2]
[421865384,1778247075000,-347.63276156,0.00010848,2]
[421865387,1778247206000,2582.0,0.00019178,120]
[421865389,1778247314000,10000.0,0.00011,30]
[421865390,1778247325000,10000.0,0.00011,30]
[421865391,1778247339000,5278.0,0.00019178,120]
[421865399,1778247873000,2000.0,0.00011,30]
[421865400,1778247898000,2024.0,8.16e-05,2]
[421865483,1778248232000,-500.0,0.00011175,2]
[421865470,1778248232000,-338.52055647,9.863e-05,2]
[421865477,1778248232000,-500.0,0.00011175,2]
[421865464,1778248232000,-5000.0,9.618e-05,2]
[421865475,1778248232000,-300.0,0.00011174,2]
[421865473,1778248232000,-221.81456291,0.00011138,2]
[421865478,1778248232000,-500.0,0.00011175,2]
[421865467,1778248232000,-3117.76203223,9.715e-05,2]
[421865480,1778248232000,-500.0,0.00011175,2]
[421865481,1778248232000,-500.0,0.00011175,2]
[421865493,1778248232000,-515.17,0.00011175,2]
[421865486,1778248232000,-500.0,0.00011175,2]
[421865494,1778248232000,-500.0,0.00011175,2]
[421865490,1778248232000,-500.0,0.00011175,2]
[421865485,1778248232000,-3635.74,0.00011175,2]
[421865484,1778248232000,-500.0,0.00011175,2]
[421865487,1778248232000,-297.23,0.00011175,2]
[421865488,1778248232000,-500.0,0.00011175,2]
[421865489,1778248232000,-725.49,0.00011175,2]
[421865492,1778248232000,-500.0,0.00011175,2]
[421865491,1778248232000,-500.0,0.00011175,2]
[421865496,1778248232000,-83.78729669,0.00011175,2]
[421865495,1778248232000,-261.34,0.00011175,2]
[421865574,1778248238000,-500.0,0.0001123,2]
[421865580,1778248238000,-500.0,0.00011449,2]
[421865575,1778248238000,-438.21,0.0001123,2]
[421865577,1778248238000,-156.41012435,0.000114,2]
[421865576,1778248238000,-600.0,0.00011399,2]
[421865569,1778248238000,-500.0,0.0001123,2]
[421865581,1778248238000,-500.0,0.00011449,2]
[421865572,1778248238000,-535.47,0.0001123,2]
[421865570,1778248238000,-500.0,0.0001123,2]
[421865579,1778248238000,-186.84,0.00011449,2]
[421865571,1778248238000,-500.0,0.0001123,2]
[421865582,1778248238000,-701.759,0.00011449,2]
[421865573,1778248238000,-500.0,0.0001123,2]
[421865588,1778248238000,-500.0,0.00011449,2]
[421865584,1778248238000,-500.0,0.00011449,2]
[421865585,1778248238000,-500.0,0.00011449,2]
[421865587,1778248238000,-198.41,0.00011449,2]
[421865589,1778248238000,-725.49,0.00011449,2]
[421865593,1778248238000,-515.17,0.00011449,2]
[421865596,1778248238000,-500.0,0.00011449,2]
[421865594,1778248238000,-500.0,0.00011449,2]
[421865591,1778248238000,-517.58,0.00011449,2]
[421865586,1778248238000,-3635.74,0.00011449,2]
[421865590,1778248238000,-500.0,0.00011449,2]
[421865595,1778248238000,-500.0,0.00011449,2]
[421865565,1778248238000,-500.0,0.0001123,2]
[421865578,1778248238000,-500.0,0.00011449,2]
[421865568,1778248238000,-500.0,0.0001123,2]
[421865592,1778248238000,-500.0,0.00011449,2]
[421865566,1778248238000,-500.0,0.0001123,2]
[421865544,1778248238000,-265.66982306,0.00011175,2]
[421865539,1778248238000,-500.0,0.00011175,2]
[421865546,1778248238000,-500.0,0.00011175,2]
[421865541,1778248238000,-500.0,0.00011175,2]
[421865542,1778248238000,-1096.46,0.00011175,2]
[421865545,1778248238000,-728.77,0.00011175,2]
[421865547,1778248238000,-500.0,0.00011175,2]
[421865538,1778248238000,-416.21270331,0.00011175,2]
[421865543,1778248238000,-500.0,0.00011175,2]
[421865540,1778248238000,-500.0,0.00011175,2]
[421865548,1778248238000,-300.0,0.00011176,2]
[421865550,1778248238000,-300.0,0.00011176,2]
[421865552,1778248238000,-300.0,0.00011176,2]
[421865551,1778248238000,-300.0,0.00011176,2]
[421865549,1778248238000,-300.0,0.00011176,2]
[421865553,1778248238000,-300.0,0.00011176,2]
[421865554,1778248238000,-300.0,0.00011176,2]
[421865558,1778248238000,-300.0,0.00011176,2]
[421865555,1778248238000,-300.0,0.00011176,2]
[421865556,1778248238000,-300.0,0.00011176,2]
[421865557,1778248238000,-300.0,0.00011176,2]
[421865561,1778248238000,-300.0,0.00011176,2]
[421865559,1778248238000,-300.0,0.00011176,2]
[421865562,1778248238000,-300.0,0.00011176,2]
[421865563,1778248238000,-500.0,0.0001123,2]
[421865564,1778248238000,-500.0,0.0001123,2]